{"text_format":"3","workbook":"xlsx","n_sheets":3,"sheets":["Лист1","Лист2","Лист3"],"not_rendered":{"defined_names":1},"read":"whole","date_system":"1900"}

{"sheet":"Лист1","index":0,"n_rows":57,"n_cols":8,"rows_kept":57}
[null,"Оценочный лист члена жюри конкурса - ИТОГ"]
["№ п/п","ФИО участника","Образовательное учреждение","Тематика работы","Название презентации","Общая оценка","Средний балл","Результат"]
[45,"Хаметшина Ольга Викторовна","МАУ ДО \"ДШИ №7\" г. Набережные Челны","Презентация к внеклассному мероприятию","«Фуат Мансуров. Покоритель вершин!» (к 90-летию со дня рождения выдающегося \nТатарского дирижера)\n",150,{"$f":"F3/3","v":{"v":50,"d":"50.0"}},"1 место"]
[39,"Буркова Любовь Васильевна","МАУ ДО \"ДШИ №7\" г. Набережные Челны","Презентация к уроку","ИСПАНСКИЕ УВЕРТЮРЫ М.И. ГЛИНКИ",149,{"v":49.666666666666664,"d":"49.7"},"1 место"]
[7,"Еливанова Ольга Владимировна","МАУ ДО \"ДШИ №7\" г. Набережные Челны","Презентация к уроку","«П.И.Чайковский балет «Щелкунчик»",148,{"v":49.333333333333336,"d":"49.3"},"1 место"]
[14,"Луговая Татьяна Генадьевна","МАУ ДО \"ДШИ №7\" г. Набережные Челны","Презентация к уроку","«Полифония: грани и смыслы» ",148,{"v":49.333333333333336,"d":"49.3"},"1 место"]
[51,"Замилова Луйиза Мегдятовна, Суходольская Рузалия Салиховна ","МАУ ДО \"ДШИ №7\" г. Набережные Челны","Презентация к внеклассному мероприятию","Музыкальный театр                        Карла Орфа. \n«Carmina Burana»\n",147,{"v":49,"d":"49.0"},"1 место"]
[15,"Муртазина Лейсан Шамилевна","МБУДО «Детская музыкальная школа №8» Приволжского района г. Казани\n","Презентация к внеклассному мероприятию","«Музыкальные мистификации»\n",146,{"v":48.666666666666664,"d":"48.7"},"1 место"]
[16,"Карабанова Анна Аркадьевна, \nИгнатьева Эльвира Ханифовна, ","МБУДО «Детская школа искусств № 15» Ново-Савиновского района г.Казани","Презентация к уроку","«Танцевальное путешествие по странам и векам»",146,{"v":48.666666666666664,"d":"48.7"},"1 место"]
[35,"Тукеева Юлия Владимировна ","Муниципальное бюджетное учреждение дополнительного образования \n«Детская музыкальная школа №1»\n Нижнекамский муниципальный район Республика Татарстан\n","Презентация к уроку","«Прогулка по волшебному лесу»",146,{"v":48.666666666666664,"d":"48.7"},"1 место"]
[40,"Тарханова Лилия Михайловна\nБратштейн Евфалия Владимировна\n","МАУ ДО \"ДШИ №7\" г. Набережные Челны","Презентация к уроку","В.А.Моцарт «AVE VERUM CORPUS»",146,{"v":48.666666666666664,"d":"48.7"},"1 место"]
[11,"Григорьева Мария Васильевна","Муниципальное бюджетное учреждение дополнительного образования г. Казани \"Детская музыкальная школа № 13\"","Презентация к уроку","Музыкальная композиция в музыкальной школе",144,{"v":48,"d":"48.0"},"1 место"]
[13,"Гибадуллина Гузель Моратовна","МАУ ДО \"ДШИ №7\" г. Набережные Челны","Презентация к внеклассному мероприятию","В.Я. Шаинский Вместе весело шагать»",144,{"v":48,"d":"48.0"},"1 место"]
[33,"Чутаева Рузалия Гилемхановна","МБУ ДО «ДМШ №2» НМР РТ ","Презентация к уроку","«Габдулла Тукай в поэзии и музыке»",144,{"v":48,"d":"48.0"},"1 место"]
[1,"Лотфуллина Лилия Рафисовна","МАУ ДО \"ДШИ №7\" г. Набережные Челны","Презентация к уроку","Танцы кукол",143,{"v":47.666666666666664,"d":"47.7"},"2 место"]
[34,"Дорофеева Надежда Анатольевна ","МБО ДО «Детская школа искусств им. С.Губайдулиной»","Презентация к уроку","«Музыка и природа» (музыкальные произведения о птицах) ",142,{"v":47.333333333333336,"d":"47.3"},"2 место"]
[46,"Храмушина Наталья Николаевна","МАУ ДО \"ДШИ №7\" г. Набережные Челны","Презентация к уроку","Классическая музыка в мультфильмах\n",142,{"v":47.333333333333336,"d":"47.3"},"2 место"]
[23,"Фасхутдинова Альбина Саматовна, Фазлиева Альбина Мизхатовна","Муниципальное бюджетное учреждение дополнительного образования «Детская школа искусств» Нижнекамского муниципального района Республики Татарстан","Презентация к уроку","«По страницам Детского альбома Петра Ильича Чайковского»",141,{"v":47,"d":"47.0"},"2 место"]
[27,"Южакова Любовь Александровна","МУНИЦИПАЛЬНОЕ БЮДЖЕТНОЕ УЧРЕЖДЕНИЕ ДОПОЛНИТЕЛЬНОГО ОБРАЗОВАНИЯ \"НИКОЛО-ПАВЛОВСКАЯ ДЕТСКАЯ ШКОЛА ИСКУССТВ\" ","Презентация к внеклассному мероприятию","«Деревянные духовые инструменты»",141,{"v":47,"d":"47.0"},"2 место"]
[29,"Усманова Джамиля Анжельевна","Муниципальное бюджетное учреждение дополнительного образования «Детская музыкальная школа № 1» Кировского района г. Казани","Презентация к уроку","«Танцы Древнего мира»",140,{"v":46.666666666666664,"d":"46.7"},"2 место"]
[49,"Ларионова  Оксана Михайловна ","МАУ ДО \"ДШИ №7\" г. Набережные Челны","Презентация к внеклассному мероприятию","«Современные исполнители на домре»",140,{"v":46.666666666666664,"d":"46.7"},"2 место"]
[25,"Постникова Людмила Григорьевна ","муниципальное бюджетное учреждение дополнительного образования «Детская музыкальная школа №3 им. Н.И. Привалова»","Презентация к внеклассному мероприятию","«Живи, баян, - душа России»",139,{"v":46.333333333333336,"d":"46.3"},"2 место"]
[32,"Размахова Валентина Леонидовна","МБУ ДО «ДМШ №2» НМР РТ ","Презентация к уроку","«Людвиг ван Бетховен. Автопортрет. «Лунная соната». Мир образов. ",139,{"v":46.333333333333336,"d":"46.3"},"2 место"]
[42,"Колтунова Татьяна Николаевна","МАУ ДО \"ДШИ №7\" г. Набережные Челны","Презентация к внеклассному мероприятию","Творческое портфолио \nвокального ансамбля\n«КОЛиБРИ»\n",139,{"v":46.333333333333336,"d":"46.3"},"2 место"]
[43,"Толстова Юлия Павловна","МАУ ДО \"ДШИ №7\" г. Набережные Челны","Презентация к уроку","Формирование и развитие  технических навыков в младших классах флейты в ДШИ ",139,{"v":46.333333333333336,"d":"46.3"},"2 место"]
[50,"Николаева Ольга Сергеевна","МАУ ДО \"ДШИ №7\" г. Набережные Челны","Презентация к внеклассному мероприятию","Анна Герман. Судьба и песни",139,{"v":46.333333333333336,"d":"46.3"},"2 место"]
[2,"Зубова Янина Владимировна","МАУ ДО \"ДШИ №7\" г. Набережные Челны","Презентация к внеклассному мероприятию","Современные скрипачи.\nЛауреаты международных конкурсов\n",138,{"v":46,"d":"46.0"},"2 место"]
[18,"Петрова Лидия Ивановна\nАлексеева Наиля Азатовна","МАУ ДО \"ДШИ №7\" г. Набережные Челны","Презентация к уроку","«Великие балерины  XX века»",138,{"v":46,"d":"46.0"},"2 место"]
[53,"Шлычкова Кристина Владимировна","МАУ ДО \"ДШИ №7\" г. Набережные Челны","Презентация к внеклассному мероприятию","Юные скрипачи-лауреаты телевизионных конкурсов",138,{"v":46,"d":"46.0"},"2 место"]
[30,"Бабочкина Татьяна Владимировна","Муниципальное бюджетное учреждение дополнительного образования «Детская музыкальная школа №24» Кировского района города Казани","Презентация к уроку","«Свиридов – детям»",136,{"v":45.333333333333336,"d":"45.3"},"3 место"]
[31,"Рудзит Лариса Викторовна;","МАУ ДО \"ДШИ №7\" г. Набережные Челны","Презентация к уроку","«Международный день музыки - история праздника»",136,{"v":45.333333333333336,"d":"45.3"},"3 место"]
[26,"Герасимова Венера Ринатовна ","МБУДО г. Казани «Детская музыкальная школа №13»","Презентация к уроку","«Фарид Яруллин – композитор и фронтовик»",135,{"v":45,"d":"45.0"},"3 место"]
[6,"Егорова Светлана Григорьевна","МАУ ДО \"ДШИ №7\" г. Набережные Челны","Презентация к внеклассному мероприятию","«Современные баянисты-виртуозы»",134,{"v":44.666666666666664,"d":"44.7"},"3 место"]
[54,"Ситдикова Ольга Анатольевна","МАУ ДО \"ДШИ №7\" г. Набережные Челны","Презентация к уроку","Работа над  звуковедением в вокальном произведении М.И. Глинки на слова В. Забеллы «Ты, соловушка, умолкни\"",134,{"v":44.666666666666664,"d":"44.7"},"3 место"]
[19,"Панкова Наталья Владимировна, Латыпова Анастасия Тагирзяновна","МАУ ДО \"ДШИ №7\" г. Набережные Челны","Презентация к внеклассному мероприятию","«Фуэте. К 80-летию Екатерины Максимовой»",133,{"$f":"F35/3","v":{"v":44.333333333333336,"d":"44.3"}},"3 место"]
[52,"Шигапова Гульнара Масхудовна","МАУ ДО \"ДШИ №7\" г. Набережные Челны","Презентация к внеклассному мероприятию","Жизнь и творчество баяниста-композитора Вячеслава Семенова",133,{"v":44.333333333333336,"d":"44.3"},"3 место"]
[55,"Илларионова Ирина Нагимовна","МАУ ДО \"ДШИ №7\" г. Набережные Челны","Презентация к внеклассному мероприятию","КВАРТЕТ IL DIVО",133,{"v":44.333333333333336,"d":"44.3"},"3 место"]
[10,"Ильюшкина Виктория Витальевна","МАУ ДО \"ДШИ №7\" г. Набережные Челны","Презентация к внеклассному мероприятию","«Великие пианисты»",132,{"v":44,"d":"44.0"},"3 место"]
[36,"Журавлева Рамзия Нагимовна","МАУ ДО \"ДШИ №7\" г. Набережные Челны","Презентация к уроку","«Вдвоем веселее» Ансамблевое исполнительство",132,{"v":44,"d":"44.0"},"3 место"]
[47,"Сулейманова Ильсияр Тагировна","МАУ ДО \"ДШИ №7\" г. Набережные Челны","Презентация к уроку","История одного романса. М.И. Глинка \"Жаворонок\"",132,{"v":44,"d":"44.0"},"3 место"]
[21,"Ларина Вероника Владимировна","МБУДО «Детская музыкальная школа №24» Кировского района г.Казани","Презентация к уроку"," «С МУЗЫКОЙ ВОКРУГ СВЕТА» ",130,{"v":43.333333333333336,"d":"43.3"},"Д 1"]
[28,"Головачева Зульфия Мансуровна","Муниципальное бюджетное учреждение дополнительного образования «Детская школа искусств №15» Ново-Савиновского района г. Казани","Презентация к уроку","Роль Н.Г.Жиганова в развитии музыкальной культуры Республики Татарстан",130,{"v":43.333333333333336,"d":"43.3"},"Д 1"]
[37,"Савастьянова Наталья Николаевна","МАУ ДО \"ДШИ №7\" г. Набережные Челны","Презентация к уроку","Валерий Гаврилин. Современники о композиторе. ",130,{"v":43.333333333333336,"d":"43.3"},"Д 1"]
[4,"Хуснуллина Альфия Альбертовна","МАУ ДО \"ДШИ №7\" г. Набережные Челны","Презентация к внеклассному мероприятию","Большой детский хор",129,{"v":43,"d":"43.0"},"Д 1"]
[38,"Николахина Анна Валерьевна","МАУ ДО \"ДШИ №7\" г. Набережные Челны","Презентация к уроку","Развитие навыков чтения аккомпанемента с листа как фактор творческого роста концертмейстера в ДШИ",127,{"v":42.333333333333336,"d":"42.3"},"Д 1"]
[12,"Шайдуллина Лейля Ахметзакиевна","Муниципальное бюджетное учреждение дополнительного образования \"Детская музыкальная школа № 21\" Советского района г. Казани","Презентация к уроку","Музыка, танец, литература – синтез искусств»",124,{"v":41.333333333333336,"d":"41.3"},"Д 2"]
[17,"Шишаева Лилия Галиевна, Кожевникова Людмила Валерьевна","Муниципальное автономное учреждение дополнительного образования «Детская школа хореографии №3»","Презентация к уроку","Сценарий квест-игры:\n«Угадай какая народность?»\n",124,{"v":41.333333333333336,"d":"41.3"},"Д 2"]
[24,"Насырова Елена Анваровна","МАУ ДО \"ДШИ №7\" г. Набережные Челны","Презентация к уроку","«Различные методы и формы работы с учащимися средних классов на уроках ансамблевого исполнительства»",124,{"v":41.333333333333336,"d":"41.3"},"Д 2"]
[5,"Минигалеева Гульнара Вильдановна","МАУ ДО \"ДШИ №7\" г. Набережные Челны","Презентация к уроку","«Роль штрихов в раскрытии художественного образа в музыкальных  произведениях в классе баяна»\n",122,{"v":40.666666666666664,"d":"40.7"},"Д 2"]
[41,"Мухаметшина Венера Робесовна","МАУ ДО \"ДШИ №7\" г. Набережные Челны","Презентация к внеклассному мероприятию","ФЕДОР ШАЛЯПИН-ВЕЛИКИЙ ОПЕРНЫЙ ПЕВЕЦ ",122,{"v":40.666666666666664,"d":"40.7"},"Д 2"]
[9,"Галина Резеда Радиковна","МАУ ДО \"ДШИ №7\" г. Набережные Челны","Презентация к внеклассному мероприятию","Презентация к Детскому интерактивному концерту \"Творческое вдохновение»\n",121,{"v":40.333333333333336,"d":"40.3"},"Д 2"]
[8,"Хурматова Альфия Якубовна","МАУ ДО \"ДШИ №7\" г. Набережные Челны","Презентация к уроку","Различные формы и методы работы над музыкальным произведением в классе фортепиано",120,{"v":40,"d":"40.0"},"Д 2"]
[44,"Мухаметзянова Юлия Александровна","Муниципальное бюджетное учреждение \nдополнительного образования «Детская школа искусств» \nАгрызского муниципального района Республики Татарстан\n","Презентация к уроку","Лекция о джазе",117,{"v":39,"d":"39.0"},"Д 3"]
[48,"Евстифеева Галина Борисовна"," Муниципальное бюджетное учреждение дополнительного образования \"Камско-Полянская детская музыкальная школа\" Нижнекамского муниципального района Республики Татарстан","Презентация к внеклассному мероприятию","Вечер вокально-хоровой и инструментальной музыки «Музыканты шутят»",116,{"v":38.666666666666664,"d":"38.7"},"Д 3"]
[20,"Колигер Юлия Александровна\n","МАУ ДО \"ДШИ №7\" г. Набережные Челны","Презентация к внеклассному мероприятию","«ВНЕКЛАССНОЕ МЕРОПРИЯТИЕ, ПОСВЯЩЕННОЕ   25-ТИ ЛЕТИЮ                                                                                                                                                              ДЕТСКОЙ ВОКАЛЬНОЙ ТЕАТР-СТУДИИ   «НЕПОСЕДЫ»\n",111,{"v":37,"d":"37.0"},"Д 3"]
[3,"Капустина Анна Михайловна","МАУ ДО \"ДШИ №7\" г. Набережные Челны","Презентация к уроку"," «Природа и музыка»  ",110,{"v":36.666666666666664,"d":"36.7"},"Д 3"]
[22,"Афанасьева Н.А. , Набиуллина Н.М","МБУДО «Детская музыкальная школа №24» Кировского района г.Казани","Презентация к внеклассному мероприятию","« Спортивная Казань»",108,{"v":36,"d":"36.0"},"Д 3"]

{"sheet":"Лист2","index":1,"n_rows":0,"n_cols":0,"rows_kept":0}

{"sheet":"Лист3","index":2,"n_rows":0,"n_cols":0,"rows_kept":0}